bitfinex-derivatives/quotes_BTCF0:USTF0_20250811
["timestamp","ask_amount","ask_price","bid_price","bid_amount"]
[1754922947481,1.04793288,120500.0,120490.0,1.09199315]
[1754922947684,0.96872308,120500.0,120490.0,1.13766315]
[1754922947990,0.22863298,120500.0,120490.0,1.13766315]
[1754922948176,1.14835298,120500.0,120490.0,0.5438068]
[1754922948590,0.22863298,120500.0,120490.0,1.04540325]
[1754922948788,1.14931298,120500.0,120490.0,1.09199325]
[1754922948980,0.22863298,120500.0,120490.0,0.6924068]
[1754922949176,0.22863298,120500.0,120490.0,0.6467368]
[1754922949479,1.14883298,120500.0,120490.0,1.04540325]
[1754922949682,1.14883298,120500.0,120490.0,1.13766325]
[1754922950185,1.14883298,120500.0,120490.0,0.98906325]
[1754922950387,1.14883298,120500.0,120490.0,0.6924068]
[1754922950588,0.22863298,120500.0,120490.0,0.5438068]
[1754922950775,0.22863298,120500.0,120490.0,0.4608]
[1754922950776,1.14875298,120500.0,120490.0,0.4608]
[1754922950975,1.14867443,120500.0,120490.0,0.1830068]
[1754922951580,1.14867443,120500.0,120490.0,0.1]
[1754922951777,1.14867443,120500.0,120490.0,0.1830067]
[1754922951986,1.14867443,120500.0,120490.0,0.5438067]
[1754922952786,1.14867443,120500.0,120490.0,0.1830067]
[1754922952990,1.14867443,120500.0,120490.0,0.68460315]
[1754922953482,1.14874036,120500.0,120490.0,0.5438067]
[1754922953683,1.14867443,120500.0,120490.0,0.1]
[1754922953887,0.22855443,120500.0,120490.0,0.1]
[1754922954082,1.69182088,120500.0,120490.0,0.1]
[1754922954386,1.24656443,120500.0,120490.0,0.1]
[1754922954881,1.55736443,120500.0,120490.0,0.1]
[1754922955082,1.19516443,120500.0,120490.0,0.1]
[1754922956084,1.55596443,120500.0,120490.0,0.1]
[1754922956790,1.60324443,120500.0,120490.0,0.1]
[1754922958091,1.60468901,120500.0,120490.0,0.1]
[1754922958387,1.24388901,120500.0,120490.0,0.1]
[1754922958887,1.60468901,120500.0,120490.0,0.1]
[1754922959090,1.13414546,120500.0,120490.0,0.1]
[1754922959478,2.04642546,120500.0,120490.0,0.1]
[1754922959789,0.68888901,120500.0,120490.0,0.1]
[1754922960490,1.13414546,120500.0,120490.0,0.0071325]
[1754922960687,0.0830144,120480.0,120470.0,0.3608]
[1754922960878,0.0830213,120470.0,120460.0,0.4925382]
[1754922961081,1.1838513,120470.0,120460.0,0.5441982]
[1754922961280,0.2729713,120470.0,120460.0,0.5441982]
[1754922961483,1.1838113,120470.0,120460.0,0.46117]
[1754922961683,1.1967013,120470.0,120460.0,0.46127]
[1754922961986,0.2858613,120470.0,120460.0,0.40961]
[1754922962181,1.1962213,120470.0,120460.0,0.40961]
[1754922962390,1.1960213,120470.0,120460.0,0.04881]
[1754922962588,1.64111775,120470.0,120460.0,0.0001]
[1754922962791,1.5566613,120470.0,120460.0,0.0001]
[1754922962989,2.00191775,120470.0,120460.0,0.0001]
[1754922963296,0.6466613,120470.0,120460.0,0.0001]
[1754922963589,0.64676269,120470.0,120460.0,0.0001]
[1754922963789,0.2858613,120470.0,120460.0,0.0001]
[1754922963990,0.2858613,120470.0,120460.0,0.40961]
[1754922964189,1.1955013,120470.0,120460.0,0.40961]
[1754922964390,1.1955013,120470.0,120460.0,0.4926382]
[1754922964586,1.1955013,120470.0,120460.0,0.4936382]
[1754922964789,0.2729713,120470.0,120460.0,1.13630465]
[1754922965087,1.08158355,120470.0,120460.0,1.77818691]
[1754922965290,1.12995355,120470.0,120460.0,1.30945516]
[1754922965491,1.12967355,120470.0,120460.0,0.45574871]
[1754922965686,1.12967355,120470.0,120460.0,0.14691]
[1754922965687,0.2301613,120470.0,120460.0,0.14691]
[1754922965886,1.1977413,120470.0,120460.0,0.2104182]
[1754922966093,1.1977413,120470.0,120460.0,0.12739]
[1754922966397,0.6466613,120470.0,120460.0,0.09721]
[1754922966793,1.1969413,120470.0,120460.0,0.1802382]
[1754922966988,1.1969413,120470.0,120460.0,0.3418182]
[1754922966989,0.2729713,120470.0,120460.0,0.3418182]
[1754922967185,0.2729713,120470.0,120460.0,0.3786482]
[1754922967386,1.1851713,120470.0,120460.0,0.82390465]
[1754922967592,0.2729713,120470.0,120460.0,1.18470465]
[1754922967790,1.19356117,120470.0,120460.0,1.44188336]
[1754922967991,1.19363154,120470.0,120460.0,1.44188336]
[1754922968291,1.19327154,120470.0,120460.0,1.44288336]
[1754922968592,1.19231154,120470.0,120460.0,1.44288336]
[1754922969193,1.00236154,120470.0,120460.0,1.44288336]
[1754922969388,1.10720154,120470.0,120460.0,0.99762691]
[1754922969588,1.10720154,120470.0,120460.0,1.44288336]
[1754922970595,0.19632154,120470.0,120460.0,0.99762691]
[1754922970796,0.19632154,120470.0,120460.0,0.91459871]
[1754922970797,1.19019154,120470.0,120460.0,0.91459871]
[1754922971390,1.19019154,120470.0,120460.0,0.99762691]
[1754922971697,1.19019154,120470.0,120460.0,1.82758691]
[1754922971898,1.19019154,120470.0,120460.0,1.74455871]
[1754922972701,1.18939154,120470.0,120460.0,0.91459871]
[1754922972899,0.29425117,120470.0,120460.0,0.77845871]
[1754922973099,1.20245117,120470.0,120460.0,0.49019]
[1754922973293,0.29425117,120470.0,120460.0,0.09921]
[1754922973593,2.00770762,120470.0,120460.0,0.0505]
[1754922974197,0.65505117,120470.0,120460.0,0.0505]
[1754922974398,1.10030762,120470.0,120460.0,0.0505]
[1754922974598,2.00802762,120470.0,120460.0,0.0505]
[1754922974899,2.00802762,120470.0,120460.0,0.0495]
[1754922975403,2.00802762,120470.0,120460.0,0.0485]
[1754922976907,0.0830351,120450.0,120440.0,0.04871]
[1754922977204,0.2491364,120440.0,120430.0,0.0830489]
[1754922977501,0.0830489,120430.0,120420.0,1.13827445]
[1754922977706,0.9878489,120430.0,120420.0,2.01694445]
[1754922977909,0.9879465,120430.0,120420.0,2.34187816]
[1754922978104,1.0800565,120430.0,120420.0,1.81366671]
[1754922978403,0.9879465,120430.0,120420.0,2.25892316]
[1754922978602,0.9879865,120430.0,120420.0,1.81366671]
[1754922978804,0.9879865,120430.0,120420.0,2.25892316]
[1754922979004,1.05535841,120430.0,120420.0,1.81366671]
[1754922979197,1.05535841,120430.0,120420.0,2.25892316]
[1754922979401,1.05535841,120430.0,120420.0,1.81366671]
[1754922979603,1.05535841,120430.0,120420.0,2.25892316]
[1754922979801,0.15051841,120430.0,120420.0,2.25892316]
[1754922980001,1.14790841,120430.0,120420.0,1.64755871]
[1754922980197,1.14790841,120430.0,120420.0,2.17587096]
[1754922980611,1.14790841,120430.0,120420.0,1.64755871]
[1754922980806,1.05579841,120430.0,120420.0,1.64755871]
[1754922981111,1.14790841,120430.0,120420.0,2.09281516]
[1754922981293,0.24262841,120430.0,120420.0,2.09281516]
[1754922981495,1.23961472,120430.0,120420.0,2.17587096]
[1754922982006,1.05403841,120430.0,120420.0,2.17587096]
[1754922982206,1.05371841,120430.0,120420.0,2.17587096]
[1754922982600,0.15051841,120430.0,120420.0,2.17587096]
[1754922982803,0.0001,120440.0,120420.0,2.39197806]
[1754922983111,0.249076,120470.0,120460.0,0.0830282]
[1754922983410,0.499136,120470.0,120460.0,0.86409871]
[1754922983705,1.41220465,120470.0,120460.0,0.50329871]
[1754922983899,1.8571811,120470.0,120460.0,0.10998]
[1754922984101,0.0830282,120460.0,120450.0,0.61003139]
[1754922984295,0.3330882,120460.0,120450.0,0.50771]
[1754922984600,1.2366082,120460.0,120450.0,0.86419871]
[1754922984795,0.25317626,120460.0,120450.0,0.60702]
[1754922985005,0.31430626,120460.0,120450.0,0.94723381]
[1754922985309,1.21746626,120460.0,120450.0,0.94723381]
[1754922985502,1.21830626,120460.0,120450.0,0.50339871]
[1754922985805,0.31430626,120460.0,120450.0,0.58643381]
[1754922985995,1.21834626,120460.0,120450.0,0.94723381]
[1754922986200,0.14833626,120460.0,120450.0,1.39249026]
[1754922986394,1.05201626,120460.0,120450.0,1.39349026]
[1754922987304,1.05201626,120460.0,120450.0,0.94923381]
[1754922987899,0.14833626,120460.0,120450.0,2.22445026]
[1754922988104,0.14833626,120460.0,120450.0,2.32335026]
[1754922988306,1.05097626,120460.0,120450.0,2.32335026]
[1754922988498,0.14833626,120460.0,120450.0,2.32335026]
[1754922989010,1.05049626,120460.0,120450.0,2.32235026]
[1754922989210,1.05049626,120460.0,120450.0,2.0259552]
[1754922989211,0.14833626,120460.0,120450.0,2.0259552]
[1754922989712,1.05009626,120460.0,120450.0,2.0259552]
[1754922990312,0.14833626,120460.0,120450.0,2.0259552]
[1754922990501,1.24612626,120460.0,120450.0,1.9429201]
[1754922990816,0.39192626,120460.0,120450.0,1.9429201]
[1754922991005,1.7375979,120460.0,120450.0,0.85860139]
[1754922991201,1.29234145,120460.0,120450.0,0.75647139]
[1754922991402,1.29234145,120460.0,120450.0,0.81274139]
[1754922991907,0.39182145,120460.0,120450.0,0.81274139]
[1754922992213,1.7364379,120460.0,120450.0,0.60966139]
[1754922992415,0.8370779,120460.0,120450.0,0.1]
[1754922992716,1.7362779,120460.0,120450.0,0.14663]
[1754922992903,1.29102145,120460.0,120450.0,0.14663]
[1754922993103,1.29102145,120460.0,120450.0,0.3452]
[1754922993304,1.24306145,120460.0,120450.0,0.7890351]
[1754922993610,1.64823145,120460.0,120450.0,2.32143026]
[1754922993913,0.06527469,120460.0,120450.0,2.32143026]
[1754922994102,0.96399469,120460.0,120450.0,2.47029165]
[1754922995000,0.06527469,120460.0,120450.0,2.9155481]
[1754922995310,0.89818,120470.0,120460.0,0.0830282]
[1754922995510,0.84184,120470.0,120460.0,1.97622336]
[1754922995706,2.64804,120490.0,120480.0,0.0830144]
[1754922996007,3.6285675,120490.0,120480.0,0.84975311]
[1754922996209,2.64814284,120490.0,120480.0,1.67971311]
[1754922996413,3.54502284,120490.0,120480.0,2.48576956]
[1754922996618,3.62803034,120490.0,120480.0,2.48586956]
[1754922996814,3.61125902,120490.0,120480.0,2.48586956]
[1754922997017,3.61093902,120490.0,120480.0,2.48586956]
[1754922997411,3.69394652,120490.0,120480.0,2.04061311]
[1754922997616,3.69394652,120490.0,120480.0,2.58576956]
[1754922998005,0.3971263,120530.0,120510.0,0.2489776]
[1754922998316,0.0829937,120510.0,120500.0,0.6098012]
[1754922998512,2.4789937,120510.0,120500.0,0.2639908]
[1754922998710,2.792921,120510.0,120500.0,0.4438006]
[1754922998909,1.897161,120510.0,120500.0,0.4438006]
[1754922999213,2.6268437,120510.0,120500.0,0.5885206]
[1754922999519,2.6268437,120510.0,120500.0,0.6884206]
[1754923000418,2.17642015,120510.0,120500.0,0.4608]
[1754923000615,1.7311637,120510.0,120500.0,0.4608]
[1754923000917,2.6261237,120510.0,120500.0,0.4608]
[1754923001119,3.07146015,120510.0,120500.0,0.4608]
[1754923001617,2.6262037,120510.0,120500.0,0.4608]
[1754923001808,1.7311637,120510.0,120500.0,0.4608]
[1754923002006,2.6256837,120510.0,120500.0,0.4608]
[1754923002203,2.6256837,120510.0,120500.0,0.5438006]
[1754923002405,2.6256837,120510.0,120500.0,0.6884206]
[1754923002609,1.7311637,120510.0,120500.0,0.6884206]
[1754923002815,2.6249237,120510.0,120500.0,0.55879]
[1754923003016,1.7311637,120510.0,120500.0,0.3609]
[1754923003214,2.6249237,120510.0,120500.0,0.3609]
[1754923003418,1.7311637,120510.0,120500.0,0.4608]
[1754923003618,2.6241237,120510.0,120500.0,0.4608]
[1754923004119,2.6241237,120510.0,120500.0,0.5438006]
[1754923004416,1.50006881,120510.0,120500.0,2.22069576]
[1754923004620,2.39206881,120510.0,120500.0,2.22069576]
[1754923006226,2.39314881,120510.0,120500.0,2.22069576]
[1754923006519,0.89314881,120510.0,120500.0,2.22069576]
[1754923006717,0.89248,120510.0,120500.0,2.91494971]
[1754923007015,0.0001,120520.0,120510.0,0.0829937]
[1754923007215,0.89272,120520.0,120510.0,2.36972566]
[1754923007419,1.66872792,120530.0,120520.0,0.0829869]
[1754923007615,2.6441601,120530.0,120520.0,1.29094206]
[1754923007817,2.6913701,120530.0,120520.0,2.12066206]
[1754923008011,1.7159101,120530.0,120520.0,1.86348335]
[1754923008212,2.5611801,120530.0,120520.0,2.12066206]
[1754923009517,2.6441601,120530.0,120520.0,2.12066206]
[1754923009716,2.6906101,120530.0,120520.0,2.22056206]
[1754923010020,2.6073101,120530.0,120520.0,1.77530561]
[1754923010225,2.6073101,120530.0,120520.0,2.22056206]
[1754923010417,2.6902901,120530.0,120520.0,2.22056206]
[1754923010623,2.6902901,120530.0,120520.0,1.77530561]
[1754923010819,2.6073101,120530.0,120520.0,2.22056206]
[1754923011423,2.6902901,120530.0,120520.0,2.22056206]
[1754923011625,1.7988901,120530.0,120520.0,2.22056206]
[1754923011924,1.7988901,120530.0,120520.0,1.77530561]
[1754923012126,0.2988901,120530.0,120520.0,1.77530561]
[1754923012324,0.3958701,120530.0,120520.0,1.63068551]
[1754923012623,0.3958701,120530.0,120520.0,1.54769871]
[1754923012825,1.2850301,120530.0,120520.0,1.54769871]
[1754923013124,1.2850301,120530.0,120520.0,1.54869871]
[1754923013829,1.2846701,120530.0,120520.0,1.63168561]
[1754923014018,1.2846701,120530.0,120520.0,1.54869871]
[1754923014323,1.2845501,120530.0,120520.0,0.4618]
[1754923014523,1.2839901,120530.0,120520.0,0.5447869]
[1754923014715,0.3958701,120530.0,120520.0,0.7193369]
[1754923014918,1.2839901,120530.0,120520.0,0.7520569]
[1754923015321,1.2840301,120530.0,120520.0,1.23210335]
[1754923015521,1.2840301,120530.0,120520.0,1.48928206]
[1754923016721,1.2840301,120530.0,120520.0,2.31900206]
[1754923017128,0.3958701,120530.0,120520.0,2.31900206]
[1754923017325,0.3958701,120530.0,120520.0,1.29252]
[1754923017525,1.2822701,120530.0,120520.0,0.4628]
[1754923017831,1.2822701,120530.0,120520.0,1.00923561]
[1754923018330,1.2812701,120530.0,120520.0,1.00923561]
[1754923018528,1.2809901,120530.0,120520.0,1.00923561]
[1754923018722,1.2809901,120530.0,120520.0,1.83895561]
[1754923019237,0.3958701,120530.0,120520.0,1.83895561]
[1754923019532,1.2809101,120530.0,120520.0,1.83895561]
[1754923020431,0.3958701,120530.0,120520.0,1.83895561]
[1754923020637,1.2797101,120530.0,120520.0,1.69433561]
[1754923020822,1.2010601,120530.0,120520.0,1.76141561]
[1754923021324,0.3172201,120530.0,120520.0,1.57962871]
[1754923021523,0.76240437,120530.0,120520.0,0.102]
[1754923021733,2.00796857,120530.0,120520.0,0.102]
[1754923021929,2.00776857,120530.0,120520.0,0.04574]
[1754923022228,1.12464857,120530.0,120520.0,0.04574]
[1754923022439,2.00772857,120530.0,120520.0,0.04574]
[1754923022737,2.00716857,120530.0,120520.0,0.04574]
[1754923022923,1.12464857,120530.0,120520.0,0.04474]
[1754923023229,2.00708857,120530.0,120520.0,0.04384]
[1754923023429,2.00668857,120530.0,120520.0,0.04384]
[1754923023934,1.56143212,120530.0,120520.0,0.04384]
[1754923024435,1.12464857,120530.0,120520.0,0.04384]
[1754923024635,2.00580857,120530.0,120520.0,0.04384]
[1754923024836,1.12474613,120530.0,120520.0,0.04384]
[1754923025137,2.00528857,120530.0,120520.0,0.04384]
[1754923025337,1.64448857,120530.0,120520.0,0.04384]
[1754923025737,1.19923212,120530.0,120520.0,0.04384]
[1754923026128,1.19923212,120530.0,120520.0,1.13073871]
[1754923026129,1.19891212,120530.0,120520.0,1.13073871]
[1754923026330,0.31859212,120530.0,120520.0,1.13073871]
[1754923026524,1.19879212,120530.0,120520.0,1.57452561]
[1754923026735,1.19871212,120530.0,120520.0,1.13073871]
[1754923026938,1.19959212,120530.0,120520.0,1.13073871]
[1754923027244,1.19959212,120530.0,120520.0,0.04384]
[1754923028040,1.55481857,120530.0,120520.0,0.04384]
[1754923028230,1.55469857,120530.0,120520.0,0.04384]
[1754923028739,1.10944212,120530.0,120520.0,0.04384]
[1754923028929,1.10952981,120530.0,120520.0,0.04384]
[1754923029231,1.55449857,120530.0,120520.0,0.04384]
[1754923029627,0.67381857,120530.0,120520.0,0.04384]
[1754923029826,1.55313857,120530.0,120520.0,0.04384]
[1754923030236,0.67381857,120530.0,120520.0,0.04384]
[1754923030434,1.10788212,120530.0,120520.0,0.04384]
[1754923030937,1.10768212,120530.0,120520.0,0.04384]
[1754923031246,1.10774841,120530.0,120520.0,0.04384]
[1754923031544,1.91313857,120530.0,120520.0,0.04384]
[1754923032035,1.03461857,120530.0,120520.0,0.04384]
[1754923032334,0.22856212,120530.0,120520.0,0.04384]
[1754923032537,1.10624212,120530.0,120520.0,0.487627]
[1754923032742,1.10704212,120530.0,120520.0,0.74480571]
[1754923033034,1.159471,120530.0,120520.0,0.74480571]
[1754923033228,1.15947513,120530.0,120520.0,0.74480571]
[1754923033431,1.15940212,120530.0,120520.0,0.74480571]
[1754923034235,1.159509,120530.0,120520.0,0.74480571]
[1754923035238,1.159509,120530.0,120520.0,1.57452571]
[1754923035840,1.130249,120530.0,120520.0,1.57452571]
[1754923036240,0.251769,120530.0,120520.0,1.57452571]
[1754923036540,1.128489,120530.0,120520.0,1.49153871]
[1754923037141,0.25166212,120530.0,120520.0,1.49153871]
[1754923037342,1.57299857,120530.0,120520.0,0.66181871]
[1754923037733,0.25166212,120530.0,120520.0,0.66181871]
[1754923038040,1.57147857,120530.0,120520.0,0.66281871]
[1754923038244,1.12622212,120530.0,120520.0,0.66281871]
[1754923039138,1.12622212,120530.0,120520.0,0.82930871]
[1754923039442,1.12622212,120530.0,120520.0,0.91329571]
[1754923039650,1.12622212,120530.0,120520.0,1.74301571]
[1754923039937,1.12622212,120530.0,120520.0,1.66002871]
[1754923040138,0.15209212,120530.0,120520.0,1.66002871]
[1754923040346,1.02565212,120530.0,120520.0,1.93109345]
[1754923040535,1.02572976,120530.0,120520.0,2.18827216]
[1754923041034,1.12416976,120530.0,120520.0,1.66002871]
[1754923041538,0.25104976,120530.0,120520.0,1.66002871]
[1754923041842,1.19032976,120530.0,120520.0,1.74301571]
[1754923042245,0.27108976,120530.0,120520.0,2.18627216]
[1754923042544,1.09124976,120530.0,120520.0,2.18627216]
[1754923043349,1.09124976,120530.0,120520.0,2.18727216]
[1754923043848,1.19012976,120530.0,120520.0,1.74201571]
[1754923044149,1.19012976,120530.0,120520.0,1.74301571]
[1754923044535,1.14360976,120530.0,120520.0,1.74301571]
[1754923044734,1.09124976,120530.0,120520.0,1.74201571]
[1754923044938,1.19012976,120530.0,120520.0,1.74201571]
[1754923045747,1.19012976,120530.0,120520.0,1.74101571]
[1754923045949,1.19012976,120530.0,120520.0,1.65802871]
[1754923046137,1.63178857,120530.0,120520.0,1.52164871]
[1754923046448,0.31753212,120530.0,120520.0,1.62380871]
[1754923046742,1.18837212,120530.0,120520.0,1.62380871]
[1754923046946,1.18844384,120530.0,120520.0,1.62380871]
[1754923047147,1.18843863,120530.0,120520.0,1.62380871]
[1754923047335,1.18845709,120530.0,120520.0,1.62380871]
[1754923047541,1.18843791,120530.0,120520.0,1.62380871]
[1754923047735,1.18847337,120530.0,120520.0,1.62380871]
[1754923048044,1.18837212,120530.0,120520.0,1.62380871]
[1754923048236,1.18701212,120530.0,120520.0,1.70679561]
[1754923048842,1.18701212,120530.0,120520.0,1.62380871]
[1754923049844,0.31753212,120530.0,120520.0,1.62380871]
[1754923050043,1.18697212,120530.0,120520.0,1.62380871]
[1754923050845,0.76287525,120530.0,120520.0,1.52164871]
[1754923051151,1.63434857,120530.0,120520.0,0.04384]
[1754923052245,1.63434857,120530.0,120520.0,0.19147531]
[1754923052956,1.63434857,120530.0,120520.0,0.04384]
[1754923054449,1.12358857,120530.0,120520.0,0.04384]
[1754923054653,1.99258857,120530.0,120520.0,0.04384]
[1754923054839,0.0829938,120510.0,120500.0,0.50843531]
[1754923055039,1.92004025,120510.0,120500.0,0.14763531]
[1754923055244,1.55924025,120510.0,120500.0,0.14763531]
[1754923055451,1.55928025,120510.0,120500.0,0.14763531]
[1754923055753,1.55928025,120510.0,120500.0,0.20383531]
[1754923055942,1.1140238,120510.0,120500.0,0.20393531]
[1754923056143,1.55928025,120510.0,120500.0,0.20393531]
[1754923056455,1.57612761,120510.0,120500.0,0.20393531]
[1754923056653,1.13087116,120510.0,120500.0,0.20393531]
[1754923056843,1.57612761,120510.0,120500.0,0.20393531]
[1754923057849,1.57612761,120510.0,120500.0,0.0563]
[1754923058746,1.55935714,120510.0,120500.0,0.0563]
[1754923058954,1.55928025,120510.0,120500.0,0.0563]
[1754923059146,1.55648025,120510.0,120500.0,0.0563]
[1754923059344,1.55656219,120510.0,120500.0,0.0563]
[1754923059658,1.55600025,120510.0,120500.0,0.0563]
[1754923061254,1.1107438,120510.0,120500.0,0.0563]
[1754923061559,1.55600025,120510.0,120500.0,0.0563]
[1754923061960,0.2454638,120510.0,120500.0,1.3299407]
[1754923062262,0.16247,120510.0,120500.0,1.96587627]
[1754923062444,1.02571,120510.0,120500.0,1.96587627]
[1754923062650,1.02571,120510.0,120500.0,2.11351158]
[1754923062951,1.02571,120510.0,120500.0,2.1134492]
[1754923063350,1.02571,120510.0,120500.0,1.73469234]
[1754923063546,1.02571,120510.0,120500.0,1.96581389]
[1754923063745,1.02571,120510.0,120500.0,1.96781389]
[1754923064244,1.02571,120510.0,120500.0,1.73669234]
[1754923064454,1.02403,120510.0,120500.0,1.73669234]
[1754923064654,1.02510578,120510.0,120500.0,1.73469234]
[1754923064847,1.02503,120510.0,120500.0,1.73469234]
[1754923065049,1.02803,120510.0,120500.0,1.83372234]
[1754923065252,0.89693,120510.0,120500.0,1.83372234]
[1754923065458,0.89701206,120510.0,120500.0,1.83372234]
[1754923065854,0.86564206,120510.0,120500.0,1.83372234]
[1754923066054,0.00408206,120510.0,120500.0,1.83372234]
[1754923066261,0.86460206,120510.0,120500.0,1.83372234]
[1754923066558,0.86536206,120510.0,120500.0,1.83372234]
[1754923067462,0.86536206,120510.0,120500.0,2.27761048]
[1754923067656,0.00408206,120510.0,120500.0,2.27761048]
[1754923067865,0.86508206,120510.0,120500.0,1.83372234]
[1754923068164,0.00408206,120510.0,120500.0,1.83372234]
[1754923068656,0.86368206,120510.0,120500.0,1.83372234]
[1754923069164,0.99117206,120510.0,120500.0,1.83372234]
[1754923069356,0.13157206,120510.0,120500.0,1.83372234]
[1754923069552,0.99117206,120510.0,120500.0,2.27761048]
[1754923069952,0.99117206,120510.0,120500.0,1.68608703]
[1754923070352,0.99117206,120510.0,120500.0,1.42890832]
[1754923070552,0.99117206,120510.0,120500.0,1.68608703]
[1754923070755,0.00408206,120510.0,120500.0,2.12997517]
[1754923070954,0.86288206,120510.0,120500.0,2.12997517]
[1754923071561,0.13157206,120510.0,120500.0,1.87988068]
[1754923071761,0.98977206,120510.0,120500.0,1.87988068]
[1754923071956,0.98977206,120510.0,120500.0,2.47113766]
[1754923072265,0.00408206,120510.0,120500.0,2.47113766]
[1754923072660,0.00408206,120510.0,120500.0,2.27734401]
[1754923072964,0.85752,120510.0,120500.0,2.52634151]
[1754923073463,0.85752,120510.0,120500.0,2.37897267]
[1754923073965,9.756e-05,120510.0,120500.0,2.37897267]
[1754923074557,0.85637756,120510.0,120500.0,2.37897267]
[1754923074758,0.97022136,120510.0,120500.0,2.37897267]
[1754923074963,1.06634136,120510.0,120500.0,2.37897267]
[1754923075164,1.10132136,120510.0,120500.0,1.93508453]
[1754923075362,1.10100136,120510.0,120500.0,2.52629018]
[1754923075563,0.24556136,120510.0,120500.0,2.08240204]
[1754923075767,1.10056136,120510.0,120500.0,2.08240204]
[1754923076056,1.10056136,120510.0,120500.0,1.93508453]
[1754923076260,1.10044136,120510.0,120500.0,2.57276632]
[1754923076465,9.756e-05,120510.0,120500.0,2.57276632]
[1754923076666,0.93781136,120510.0,120500.0,2.57276632]
[1754923077257,0.85481756,120510.0,120500.0,2.57276632]
[1754923077458,0.85481756,120510.0,120500.0,2.37897267]
[1754923077660,9.756e-05,120510.0,120500.0,2.37897267]
[1754923077865,0.85405756,120510.0,120500.0,2.37897267]
[1754923078364,0.85381756,120510.0,120500.0,2.57048534]
[1754923079370,0.85353756,120510.0,120500.0,2.57048534]
[1754923079570,0.85353756,120510.0,120500.0,2.37897267]
[1754923080261,0.85353756,120510.0,120500.0,2.5262989]
[1754923080868,0.85353756,120510.0,120500.0,2.5725489]
[1754923081062,0.85353756,120510.0,120500.0,2.42522267]
[1754923081265,0.85253756,120510.0,120500.0,2.86911081]
[1754923081469,9.756e-05,120510.0,120500.0,2.42522267]
[1754923081972,9.756e-05,120510.0,120500.0,2.06442267]
[1754923082273,9.756e-05,120510.0,120500.0,2.34213453]
[1754923082564,9.756e-05,120510.0,120500.0,2.9776664]
[1754923083567,9.756e-05,120510.0,120500.0,2.78602267]
[1754923084363,9.756e-05,120510.0,120500.0,2.34213453]
[1754923084560,9.756e-05,120510.0,120500.0,2.78602267]
[1754923084769,9.756e-05,120510.0,120500.0,3.22991081]
[1754923085072,9.756e-05,120510.0,120500.0,2.78602267]
[1754923086372,9.756e-05,120510.0,120500.0,2.72078692]
[1754923088779,9.756e-05,120510.0,120500.0,2.91250386]
[1754923091174,9.756e-05,120510.0,120500.0,2.53385147]
[1754923091475,9.756e-05,120510.0,120500.0,2.91250386]
[1754923091976,0.03249756,120510.0,120500.0,2.91250386]
[1754923092164,0.06249756,120510.0,120500.0,2.13956937]
[1754923092372,0.24211756,120510.0,120500.0,2.46628482]
[1754923092772,1.09279756,120510.0,120500.0,2.61393146]
[1754923093475,1.09255756,120510.0,120500.0,2.61393146]
[1754923093773,1.09255756,120510.0,120500.0,2.23527907]
[1754923093970,1.17554756,120510.0,120500.0,2.61393146]
[1754923094174,1.17554756,120510.0,120500.0,2.60533146]
[1754923094575,1.09255756,120510.0,120500.0,2.60533146]
[1754923094873,0.08308746,120510.0,120500.0,2.22667907]
[1754923095077,0.32510746,120510.0,120500.0,2.60533146]
[1754923095575,1.17498746,120510.0,120500.0,2.60533146]
[1754923095878,0.32510746,120510.0,120500.0,2.60533146]
[1754923096070,1.17474746,120510.0,120500.0,2.60533146]
[1754923096769,1.09175756,120510.0,120500.0,2.45768482]
[1754923097277,0.03249756,120510.0,120500.0,2.45768482]
[1754923097475,9.756e-05,120510.0,120500.0,2.45768482]
[1754923098076,9.756e-05,120510.0,120500.0,2.92903243]
[1754923098276,9.756e-05,120510.0,120500.0,3.30768482]
[1754923098475,0.0001,120520.0,120500.0,3.55667892]
[1754923098778,0.0001,120520.0,120510.0,2.1447112]
[1754923098980,0.91724792,120530.0,120510.0,2.3107868]
[1754923099276,1.04759402,120530.0,120520.0,2.24125041]
[1754923099475,1.17799842,120530.0,120520.0,1.86269802]
[1754923099682,1.17799842,120530.0,120520.0,2.24135041]
[1754923099882,0.32851842,120530.0,120520.0,2.24135041]
[1754923100178,1.24196842,120530.0,120520.0,2.24135041]
[1754923100375,1.24196842,120530.0,120520.0,1.86269802]
[1754923100683,1.24196842,120530.0,120520.0,2.24135041]
[1754923100881,0.91697232,120530.0,120520.0,2.24135041]
[1754923101075,0.96434232,120530.0,120520.0,1.99778519]
[1754923101278,1.04731842,120530.0,120520.0,1.87631151]
[1754923101482,0.19811842,120530.0,120520.0,2.24435041]
[1754923101681,1.05171842,120530.0,120520.0,1.86569802]
[1754923101881,1.13758842,120530.0,120520.0,2.24435041]
[1754923102187,1.18211842,120530.0,120520.0,2.24435041]
[1754923102483,1.18211842,120530.0,120520.0,2.24535041]
[1754923103573,1.08411842,120530.0,120520.0,2.24535041]
[1754923103774,0.32851842,120530.0,120520.0,2.24535041]
[1754923103978,1.24540842,120530.0,120520.0,2.053214]
[1754923105070,1.24540842,120530.0,120520.0,2.153114]
[1754923105276,1.24540842,120530.0,120520.0,2.16707216]
[1754923105483,1.24540842,120530.0,120520.0,2.153114]
[1754923105679,0.39276842,120530.0,120520.0,2.153114]
[1754923105883,1.16075232,120530.0,120520.0,2.153114]
[1754923106284,1.24372862,120530.0,120520.0,2.153114]
[1754923106479,1.16075232,120530.0,120520.0,2.153114]
[1754923106675,1.24372862,120530.0,120520.0,2.153114]
[1754923106876,1.16075232,120530.0,120520.0,2.153114]
[1754923107078,1.11622232,120530.0,120520.0,2.153114]
[1754923107278,0.98113232,120530.0,120520.0,2.153114]
[1754923107680,0.13017232,120530.0,120520.0,2.153114]
[1754923107880,0.91773232,120530.0,120520.0,2.153114]
[1754923108380,0.96641232,120530.0,120520.0,2.153114]
[1754923108780,0.06777232,120530.0,120520.0,2.53176639]
[1754923108984,0.06777232,120530.0,120520.0,2.67949135]
[1754923109181,0.0001044,120530.0,120520.0,2.30083896]
[1754923109786,0.0001044,120530.0,120520.0,2.153114]
[1754923110183,0.0001044,120530.0,120520.0,2.53176639]
[1754923110484,0.0001044,120530.0,120520.0,1.77446161]
[1754923110685,0.0001044,120530.0,120520.0,2.53176639]
[1754923111391,0.0001044,120530.0,120520.0,2.30078407]
[1754923111992,0.0001044,120530.0,120520.0,2.53176639]
[1754923112389,0.0001,120540.0,120520.0,2.69772739]
[1754923112594,0.2635058,120560.0,120550.0,0.0829619]
[1754923112794,1.1427558,120560.0,120550.0,1.72926995]
[1754923112995,1.1875658,120560.0,120550.0,2.70283995]
[1754923113294,1.1046108,120560.0,120550.0,2.32418756]
[1754923113488,1.18764171,120560.0,120550.0,2.70283995]
[1754923113681,1.10468681,120560.0,120550.0,2.80283995]
[1754923113889,1.10468681,120560.0,120550.0,2.610933]
[1754923114188,1.10468681,120560.0,120550.0,2.75841831]
[1754923114395,1.18680171,120560.0,120550.0,2.37976572]